bitfinex/quotes_ETHUSD_20250705
["timestamp","ask_amount","ask_price","bid_price","bid_amount"]
[1751752041427,0.7532,2520.5,2520.1,0.001]
[1751752041736,0.7689,2520.2,2520.1,0.001]
[1751752041942,4.73683905,2520.2,2520.1,0.001]
[1751752042304,4.93523905,2520.2,2520.1,0.001]
[1751752045439,14.93523905,2520.2,2520.1,0.001]
[1751752045636,17.70790806,2520.2,2520.1,0.001]
[1751752057315,18.25790806,2520.2,2520.1,0.001]
[1751752060742,26.06790806,2520.2,2520.1,0.001]
[1751752062050,34.07390806,2520.2,2520.1,0.001]
[1751752062351,34.2809072,2520.2,2520.1,0.001]
[1751752062748,26.2749072,2520.2,2520.1,0.001]
[1751752064022,34.2809072,2520.2,2520.1,0.001]
[1751752065157,13.9680965,2520.1,2520.0,0.001]
[1751752065324,15.35849774,2520.1,2520.0,0.001]
[1751752065942,15.90849774,2520.1,2520.0,0.001]
[1751752066628,23.91449774,2520.1,2520.0,0.001]
[1751752067956,24.11157077,2520.1,2520.0,0.001]
[1751752071040,24.11357077,2520.1,2520.0,0.001]
[1751752072564,16.10757077,2520.1,2520.0,0.001]
[1751752072753,26.05957077,2520.1,2520.0,0.001]
[1751752073959,4.78349901,2519.4,2519.3,0.0438094]
[1751752074161,12.79049901,2519.4,2519.3,0.0438094]
[1751752075069,11.97619901,2519.4,2519.3,0.0438094]
[1751752080070,21.61935194,2519.4,2519.3,0.0438094]
[1751752082146,22.16935194,2519.4,2519.3,0.0438094]
[1751752082352,14.62600132,2519.4,2519.3,0.0438094]
[1751752082553,22.63300132,2519.4,2519.3,0.0438094]
[1751752085349,30.44300132,2519.4,2519.3,0.0438094]
[1751752085550,30.65008417,2519.4,2519.3,0.0438094]
[1751752086367,4.76912929,2519.0,2518.9,0.001]
[1751752086673,12.77712929,2519.0,2518.9,0.001]
[1751752090283,22.77712929,2519.0,2518.9,0.001]
[1751752091185,21.97782929,2519.0,2518.9,0.001]
[1751752091504,13.96946243,2519.3,2518.9,0.8286]
[1751752091800,8.2064,2519.2,2518.9,0.8286]
[1751752092111,0.1984,2519.2,2518.9,0.8286]
[1751752092256,8.2074,2519.2,2519.0,0.8276]
[1751752092454,0.1984,2519.2,2519.0,4.79740386]
[1751752092758,0.1984,2519.2,2519.1,0.8276]
[1751752094659,3.96877161,2519.7,2519.2,3.96942825]
[1751752094660,8.013,2519.7,2519.2,3.96942825]
[1751752094862,8.013,2519.7,2519.4,0.8276]
[1751752095095,8.013,2519.6,2519.4,0.8276]
[1751752095506,8.013,2519.6,2519.4,4.79678312]
[1751752095664,0.1984,2519.8,2519.4,4.79678312]
[1751752095862,8.013,2519.7,2519.4,4.79678312]
[1751752097675,8.013,2519.7,2519.4,0.8276]
[1751752097860,0.1984,2519.5,2519.4,0.8276]
[1751752121523,4.16744147,2519.5,2519.3,0.001]
[1751752122414,0.1984,2519.4,2519.3,0.001]
[1751752123983,4.16759901,2519.4,2519.3,0.001]
[1751752124183,4.98126306,2519.4,2519.3,0.001]
[1751752126508,12.98726306,2519.4,2519.3,0.001]
[1751752126695,12.98726306,2519.4,2519.1,1.897]
[1751752128624,3.96938194,2519.3,2519.1,1.847]
[1751752132910,3.96951413,2519.2,2519.1,1.847]
[1751752134128,11.97651413,2519.2,2519.1,1.847]
[1751752134626,13.74874684,2519.2,2519.1,1.847]
[1751752143531,13.74874684,2519.2,2519.1,1.797]
[1751752143907,11.97651413,2519.2,2519.1,1.797]
[1751752144334,8.007,2519.2,2519.1,1.797]
[1751752146002,0.1984,2519.1,2519.0,0.8227]
[1751752146206,0.1984,2519.4,2519.1,4.79224782]
[1751752146403,0.1984,2519.4,2519.3,0.8227]
[1751752150624,8.007,2519.6,2519.3,0.8227]
[1751752150944,0.1984,2519.5,2519.3,0.8227]
[1751752153743,0.1984,2519.5,2519.4,3.96919901]
[1751752154046,0.1984,2519.9,2519.7,4.7517907]
[1751752155533,0.1984,2519.9,2519.7,0.7831]
[1751752155949,1.01934,2519.9,2519.4,0.9815]
[1751752156127,4.98782362,2519.9,2519.4,4.95060982]
[1751752158353,8.007,2519.8,2519.4,4.95060982]
[1751752159647,8.007,2519.8,2519.5,3.96901898]
[1751752161248,0.2004,2519.9,2519.5,3.96901898]
[1751752161454,8.006,2519.8,2519.5,3.96901898]
[1751752164063,8.006,2519.8,2519.5,6.96901898]
[1751752164229,8.006,2519.8,2519.5,3.96901898]
[1751752164755,8.006,2519.8,2519.4,4.92492279]
[1751752166163,8.006,2519.7,2519.5,3.96889939]
[1751752167157,8.006,2519.7,2519.6,3.96888394]
[1751752167370,8.005,2519.7,2519.6,3.96888394]
[1751752169645,8.005,2519.7,2519.5,3.96895814]
[1751752170558,0.2004,2519.9,2519.7,4.71879443]
[1751752170866,8.005,2519.8,2519.7,4.71879443]
[1751752171342,0.002,2519.9,2519.8,3.96856893]
[1751752171942,8.009,2519.9,2519.8,3.96856893]
[1751752176372,0.002,2519.9,2519.8,3.96856893]
[1751752176575,0.002,2519.9,2519.8,5.07539313]
[1751752180082,0.002,2519.9,2519.8,5.03570745]
[1751752182088,0.002,2519.9,2519.8,5.07539313]
[1751752186187,0.002,2519.9,2519.8,5.03570745]
[1751752187254,0.002,2519.9,2519.8,5.07539313]
[1751752191094,0.002,2519.9,2519.8,4.20665461]
[1751752191696,0.002,2519.9,2519.8,4.16696893]
[1751752192288,0.002,2519.9,2519.8,4.20665461]
[1751752194195,0.002,2519.9,2519.8,4.98165461]
[1751752196894,0.002,2519.9,2519.8,7.16696893]
[1751752197899,0.002,2519.9,2519.8,3.0]
[1751752200501,0.002,2519.9,2519.7,1.945]
[1751752202916,0.002,2519.9,2519.7,4.945]
[1751752206220,0.002,2519.9,2519.8,4.77246893]
[1751752206522,0.002,2519.9,2519.8,0.8039]
[1751752206705,0.002,2519.9,2519.8,0.7539]
[1751752206892,0.002,2519.9,2519.7,8.91364165]
[1751752207925,0.002,2519.9,2519.8,3.96856893]
[1751752210507,0.002,2519.9,2519.8,4.78076893]
[1751752210712,0.002,2519.9,2519.8,6.38830413]
[1751752212732,0.002,2519.9,2519.8,6.93830413]
[1751752213328,0.002,2519.9,2519.8,16.93830413]
[1751752213529,0.002,2519.9,2519.8,16.89861845]
[1751752216015,0.002,2519.9,2519.8,19.89861845]
[1751752216614,1e-08,2519.9,2519.8,19.89861845]
[1751752223943,1e-08,2519.9,2519.8,19.89961845]
[1751752224851,1e-08,2519.9,2519.8,16.54441845]
[1751752225039,1e-08,2519.9,2519.8,15.17796893]
[1751752226950,1e-08,2519.9,2519.8,7.16796893]
[1751752232940,1e-08,2519.9,2519.8,7.20765461]
[1751752233557,0.82240001,2519.9,2519.8,7.20765461]
[1751752233758,0.82240001,2519.9,2519.8,7.16796893]
[1751752234361,0.82240001,2519.9,2519.8,3.1994]
[1751752234660,0.82240001,2519.9,2519.8,7.16796893]
[1751752235352,0.82240001,2519.9,2519.8,3.1994]
[1751752236165,0.82240001,2519.9,2519.8,3.001]
[1751752237838,0.82240001,2519.9,2519.8,0.001]
[1751752244377,1.32169223,2519.9,2519.8,0.001]
[1751752263787,5.29010367,2519.9,2519.8,0.001]
[1751752264105,5.48850367,2519.9,2519.8,0.001]
[1751752264579,1.52009223,2519.9,2519.8,0.001]
[1751752265773,5.48850367,2519.9,2519.8,0.001]
[1751752266089,1.52009223,2519.9,2519.8,0.001]
[1751752266285,5.48850367,2519.9,2519.8,0.001]
[1751752271798,11.90938888,2519.9,2519.8,0.001]
[1751752272492,5.48850367,2519.9,2519.8,0.001]
[1751752285051,13.49250367,2519.9,2519.8,0.001]
[1751752294152,0.19840001,2519.9,2519.8,0.819]
[1751752294463,1e-08,2519.9,2519.8,4.78756893]
[1751752294659,1e-08,2519.9,2519.8,5.02565461]
[1751752294960,1e-08,2519.9,2519.8,7.86909153]
[1751752295264,1e-08,2519.9,2519.8,7.82940585]
[1751752323454,1e-08,2519.9,2519.8,16.37940585]
[1751752323771,1e-08,2519.9,2519.8,26.37940585]
[1751752337596,1e-08,2519.9,2519.8,32.80029106]
[1751752341912,1e-08,2519.9,2519.8,26.37940585]
[1751752342211,1e-08,2519.9,2519.8,25.01140585]
[1751752342424,1e-08,2519.9,2519.8,24.10996893]
[1751752343301,1e-08,2519.9,2519.8,14.10996893]
[1751752343708,1e-08,2519.9,2519.8,0.1994]
[1751752343908,0.80290001,2519.9,2519.8,0.001]
[1751752347018,4.77131145,2519.9,2519.8,0.001]
[1751752347326,5.66550931,2519.9,2519.8,0.001]
[1751752352914,13.66350931,2519.9,2519.8,0.001]
[1751752367765,20.08613734,2519.9,2519.8,0.001]
[1751752374052,4.86260931,2519.9,2519.8,0.001]
[1751752374254,12.86060931,2519.9,2519.8,0.001]
[1751752378963,11.96641145,2519.9,2519.8,0.001]
[1751752379274,1e-08,2519.9,2519.8,0.7926]
[1751752379446,1e-08,2519.9,2519.8,4.76116893]
[1751752384070,1e-08,2519.9,2519.8,0.7926]
[1751752392803,1e-08,2519.9,2519.8,0.001]
[1751752392990,6.01387981,2519.9,2519.8,0.001]
[1751752400097,5.18517981,2519.9,2519.8,0.001]
[1751752409425,5.96867981,2519.9,2519.8,0.001]
[1751752412729,15.96867981,2519.9,2519.8,0.001]
[1751752419544,16.72541111,2519.9,2519.8,0.001]
[1751752420917,16.72541111,2519.9,2519.8,1e-08]
[1751752420918,18.66641111,2519.9,2519.8,1e-08]
[1751752421527,26.47641111,2519.9,2519.8,1e-08]
[1751752421935,35.31167271,2519.9,2519.8,1e-08]
[1751752423556,35.6031122,2519.9,2519.8,1e-08]
[1751752425545,3.9696717,2519.1,2519.0,0.001]
[1751752425748,11.9676717,2519.1,2519.0,0.001]
[1751752427132,13.64014288,2519.1,2519.0,0.001]
[1751752446961,5.64214288,2519.1,2519.0,0.001]
[1751752447134,13.64014288,2519.1,2519.0,0.001]
[1751752451679,5.64214288,2519.1,2519.0,0.001]
[1751752451875,11.9676717,2519.1,2519.0,0.001]
[1751752454760,0.7737,2519.8,2519.0,0.7965]
[1751752455062,7.998,2519.7,2519.3,0.7955]
[1751752455264,7.998,2519.6,2519.5,0.7955]
[1751752461972,7.997,2519.6,2519.5,0.7955]
[1751752463098,7.997,2519.6,2519.3,0.1984]
[1751752463311,7.997,2519.6,2519.2,0.8191]
[1751752463312,4.16751287,2519.5,2519.2,0.8191]
[1751752463463,11.96621566,2519.4,2519.0,0.001]
[1751752463664,12.16460278,2519.4,2519.0,1.8169826]
[1751752463969,4.16785147,2519.3,2519.0,0.8201]
[1751752464181,7.997,2519.2,2519.0,0.8201]
[1751752465390,7.997,2519.2,2519.0,0.001]
[1751752470614,7.996,2519.1,2519.0,0.001]
[1751752474616,11.9656717,2519.1,2519.0,0.001]
[1751752483416,13.64036678,2519.1,2519.0,0.001]
[1751752486334,23.64036678,2519.1,2519.0,0.001]
[1751752490052,24.46636678,2519.1,2519.0,0.001]
[1751752490219,30.89168553,2519.1,2519.0,0.001]
[1751752490732,31.09872466,2519.1,2519.0,0.001]
[1751752491749,15.54422929,2519.0,2518.9,1e-08]
[1751752492050,18.14546468,2519.0,2518.9,1e-08]
[1751752493940,26.9853729,2519.0,2518.9,1e-08]
[1751752497133,4.51998689,2518.9,2518.8,0.0428094]
[1751752497333,24.97268197,2518.9,2518.8,0.0428094]
[1751752498249,26.91768197,2518.9,2518.8,0.0428094]
[1751752500031,16.97468197,2518.9,2518.8,0.0428094]
[1751752500232,26.91768197,2518.9,2518.8,0.0428094]
[1751752502577,26.91768197,2518.9,2518.8,0.0438094]
[1751752503682,26.13768197,2518.9,2518.8,0.0438094]
[1751752513890,32.56700961,2518.9,2518.8,0.0438094]
[1751752524679,32.56900961,2518.9,2518.8,0.0438094]
[1751752526500,13.97198689,2518.9,2518.8,0.8224094]
[1751752526684,11.98298689,2518.9,2518.8,0.8224094]
[1751752526886,21.98298689,2518.9,2518.8,0.8224094]
[1751752527472,13.97198689,2518.9,2518.8,0.8224094]
[1751752527805,21.98298689,2518.9,2518.8,0.8224094]
[1751752527975,13.97198689,2518.9,2518.8,0.8224094]
[1751752528296,21.98298689,2518.9,2518.8,0.8224094]
[1751752537787,21.98298689,2518.9,2518.8,0.7724094]
[1751752540282,0.1984,2518.8,2518.4,3.97168075]
[1751752540483,8.2034,2518.7,2518.4,4.77031523]
[1751752540689,8.003,2518.6,2518.4,4.77031523]
[1751752540994,8.003,2518.6,2518.5,0.8035]
[1751752541821,0.1984,2518.7,2518.5,4.77403105]
[1751752542118,8.003,2518.6,2518.5,4.77403105]
[1751752542324,0.1984,2518.7,2518.6,0.8321]
[1751752542501,8.2014,2518.7,2518.6,0.8321]
[1751752558336,8.2014,2518.7,2518.5,0.001]
[1751752567623,12.17171714,2518.7,2518.5,0.001]
[1751752568144,8.2014,2518.7,2518.5,0.001]
[1751752576748,3.97045977,2518.6,2518.5,0.001]
[1751752595337,11.96845977,2518.6,2518.5,0.001]
[1751752602547,0.1984,2518.7,2518.5,0.001]
[1751752602880,0.1984,2518.7,2518.6,0.7712]
[1751752603085,8.1964,2518.7,2518.6,0.7712]
[1751752603879,0.1984,2518.7,2518.6,0.7712]
[1751752604048,7.998,2518.7,2518.6,1.64265642]
[1751752605781,0.2004,2518.8,2518.6,1.64265642]
[1751752605990,7.997,2518.7,2518.6,1.64265642]
[1751752606451,7.997,2518.7,2518.6,5.61311619]
[1751752611489,0.2004,2518.8,2518.6,1.64265642]
[1751752611792,8.1974,2518.8,2518.7,4.53172903]
[1751752612388,0.2004,2518.8,2518.7,4.53172903]
[1751752612588,8.1974,2518.8,2518.7,4.53172903]
[1751752613886,8.1974,2518.8,2518.7,0.5614269]
[1751752614094,0.002,2518.8,2518.7,4.53172903]
[1751752617993,0.002,2518.8,2518.7,5.34262903]
[1751752624803,0.002,2518.8,2518.7,1.3723269]
[1751752630008,0.002,2518.8,2518.7,5.34262903]
[1751752630702,0.002,2518.8,2518.7,1.3723269]
[1751752631007,0.002,2518.8,2518.7,4.78120213]
[1751752633105,0.002,2518.8,2518.7,4.97960213]
[1751752633881,0.002,2518.8,2518.7,5.01930515]
[1751752634289,0.002,2518.8,2518.7,4.97960213]
[1751752637313,0.002,2518.8,2518.7,11.95667823]
[1751752637489,1e-08,2518.8,2518.7,24.34468965]
[1751752639590,1e-08,2518.8,2518.7,34.27868965]
[1751752641923,1e-08,2518.8,2518.7,23.79468965]
[1751752642092,1e-08,2518.8,2518.7,4.52641142]
[1751752642427,3.97030213,2518.7,2518.6,0.001]
[1751752643301,4.75820213,2518.7,2518.6,0.001]
[1751752647123,12.75720213,2518.7,2518.6,0.001]
[1751752647504,7.999,2518.7,2518.6,0.001]
[1751752648131,8.003,2518.7,2518.6,0.001]
[1751752648305,1e-08,2518.8,2518.6,0.001]
[1751752648621,1e-08,2518.8,2518.6,3.97145879]
[1751752658883,1e-08,2518.8,2518.7,3.97030213]
[1751752659028,1e-08,2518.8,2518.6,3.97140297]
[1751752659229,1e-08,2518.8,2518.6,4.16980297]
[1751752664772,1e-08,2518.8,2518.6,0.1994]
[1751752666871,1e-08,2518.8,2518.6,4.16984422]
[1751752670067,1e-08,2518.8,2518.6,0.1994]
[1751752672850,1e-08,2518.8,2518.6,0.23910459]
[1751752677377,1e-08,2518.8,2518.6,0.1994]
[1751752682388,1e-08,2518.8,2518.6,4.16985277]
[1751752682694,1e-08,2518.8,2518.6,4.16984333]
[1751752682883,1e-08,2518.8,2518.7,3.97030213]
[1751752683084,1e-08,2518.8,2518.7,4.01000515]
[1751752683286,1e-08,2518.8,2518.7,10.43557443]
[1751752683483,1e-08,2518.8,2518.7,11.18677141]
[1751752683688,1e-08,2518.8,2518.7,13.35395941]
[1751752685898,1e-08,2518.8,2518.7,15.7593201]
[1751752693711,1e-08,2518.8,2518.7,20.5093201]
[1751752698284,1e-08,2518.8,2518.7,30.5093201]
[1751752709932,1e-08,2518.8,2518.7,28.10006394]
[1751752711107,1e-08,2518.8,2518.7,23.35006394]
[1751752712129,1e-08,2518.8,2518.7,22.55916394]
[1751752712435,1e-08,2518.8,2518.7,30.55216394]
[1751752713939,1e-08,2518.8,2518.7,24.13049013]
[1751752725045,1e-08,2518.8,2518.7,16.13749013]
[1751752725352,1e-08,2518.8,2518.7,26.06949013]
[1751752729656,1e-08,2518.8,2518.7,18.07649013]
[1751752729955,1e-08,2518.8,2518.7,26.06849013]
[1751752731562,1e-08,2518.8,2518.7,30.81849013]
[1751752731732,1e-08,2518.8,2518.7,31.61389013]
[1751752737783,1e-08,2518.8,2518.7,38.03505481]
[1751752738589,1e-08,2518.9,2518.8,13.97014451]
[1751752738777,1e-08,2518.9,2518.8,19.20193699]
[1751752741157,1e-08,2518.9,2518.8,23.95193699]
[1751752741760,1e-08,2518.9,2518.8,32.77998489]
[1751752742490,0.8029,2519.8,2519.7,3.96872643]
[1751752742691,0.002,2519.8,2519.7,5.18675418]
[1751752742895,0.002,2519.8,2519.7,5.38515418]
[1751752743112,1e-08,2519.8,2519.7,15.93515418]
[1751752743397,1e-08,2519.8,2519.7,20.64546692]
[1751752743573,1e-08,2519.8,2519.7,21.47836692]
[1751752744758,1e-08,2519.8,2519.7,21.77857547]
[1751752747701,0.002,2520.1,2520.0,15.34095396]
[1751752747865,0.002,2520.1,2520.0,34.08993605]
[1751752748203,1e-08,2520.1,2520.0,39.03833605]
[1751752748564,1e-08,2520.1,2520.0,41.53833605]
[1751752749264,1e-08,2520.1,2520.0,43.47633605]
[1751752751396,1e-08,2520.1,2520.0,34.66363605]
[1751752751588,1e-08,2520.1,2520.0,42.65263605]
[1751752751792,1e-08,2520.1,2520.0,37.35463605]
[1751752752297,1e-08,2520.1,2520.0,37.35363605]
[1751752752686,1e-08,2520.1,2520.0,10.53558815]
[1751752752890,1e-08,2520.1,2520.0,8.03558815]
[1751752753091,1e-08,2520.1,2520.0,12.06033419]
[1751752753686,1e-08,2520.1,2520.0,4.06733419]
[1751752754100,0.79950001,2520.1,2520.0,4.06733419]
[1751752754301,1e-08,2520.1,2520.0,16.07027068]
[1751752754484,1e-08,2520.1,2520.0,24.85863605]
[1751752755008,1e-08,2520.1,2520.0,22.92770186]
[1751752756531,1e-08,2520.1,2520.0,26.16730067]
[1751752756702,1e-08,2520.1,2520.0,26.92580067]
[1751752757002,1e-08,2520.1,2520.0,36.92580067]
[1751752758811,1e-08,2520.1,2520.0,41.67580067]
[1751752760093,1e-08,2520.1,2520.0,32.92230067]
[1751752760301,0.79980001,2520.1,2520.0,4.9484]
[1751752760632,0.79980001,2520.1,2519.8,1.938]
[1751752760783,4.76844677,2519.8,2519.4,1.938]
[1751752760987,0.7998,2519.6,2519.4,2.1364]
[1751752767653,0.7998,2519.6,2519.4,2.1374]
[1751752768046,0.7998,2519.6,2519.4,6.10657801]
[1751752770337,0.7998,2519.6,2519.4,2.1374]
[1751752770743,0.7998,2519.6,2519.4,6.10657521]
[1751752772640,0.7998,2519.6,2519.5,3.96904147]
[1751752774646,0.7754,2519.8,2519.7,3.9686905]
[1751752774947,0.9738,2520.0,2519.8,3.96855089]
[1751752775147,0.9738,2520.0,2519.7,3.96866713]
[1751752780631,0.9738,2520.0,2519.6,3.96879648]
[1751752800472,0.9738,2520.0,2519.5,4.16843509]
[1751752800473,0.9738,2520.0,2519.5,0.1994]
[1751752800770,3.96888394,2519.6,2519.5,0.001]
[1751752800940,13.60048777,2519.6,2519.5,0.001]
[1751752802134,9.63160383,2519.6,2519.5,0.001]
[1751752803054,13.60048777,2519.6,2519.5,0.001]
[1751752803861,9.63160383,2519.6,2519.5,0.001]
[1751752806287,8.817,2519.6,2519.5,0.001]
[1751752807663,0.1984,2519.7,2519.6,3.96888394]
[1751752807988,7.999,2520.0,2519.7,3.968604]
[1751752808372,7.999,2520.0,2519.8,3.96854935]
[1751752809075,7.999,2520.0,2519.7,3.96865581]
[1751752810295,7.999,2520.0,2519.8,3.96856045]
[1751752810596,7.999,2520.0,2519.7,3.96864327]
[1751752811796,8.001,2519.9,2519.8,3.96849429]
[1751752816185,8.001,2519.9,2519.7,3.96864527]
[1751752816390,8.001,2519.9,2519.7,4.7823316]
[1751752817108,8.001,2519.9,2519.7,0.81368633]
[1751752817322,4.77295258,2519.8,2519.5,0.001]
[1751752817600,1.0027,2519.8,2519.5,0.001]
[1751752818393,4.97127679,2519.8,2519.5,0.001]
[1751752819015,0.7962,2519.6,2519.5,0.001]
[1751752819182,23.2614298,2519.6,2519.5,0.001]
[1751752826227,23.8114298,2519.6,2519.5,0.001]
[1751752829702,15.2614298,2519.6,2519.5,0.001]
[1751752830042,23.2714298,2519.6,2519.5,0.001]
[1751752830240,15.2614298,2519.6,2519.5,0.001]
[1751752830405,23.2724298,2519.6,2519.5,0.001]
[1751752831030,23.2714298,2519.6,2519.5,0.001]
[1751752831352,15.2614298,2519.6,2519.5,0.001]
[1751752831503,12.77608394,2519.6,2519.5,0.001]
[1751752832732,0.1984,2519.6,2519.5,0.001]
[1751752832920,8.2094,2519.6,2519.5,0.001]
[1751752834205,0.1984,2519.6,2519.5,0.001]
[1751752834639,8.2134,2519.6,2519.5,0.001]
[1751752835140,12.18228394,2519.6,2519.5,0.001]
[1751752841338,14.872581,2519.6,2519.5,0.001]
[1751752841541,12.18228394,2519.6,2519.5,0.001]
[1751752844113,22.95518394,2519.6,2519.5,0.001]
[1751752846435,22.95018394,2519.6,2519.5,0.001]
[1751752849951,22.95018394,2519.6,2518.7,8.03309675]
[1751752849952,14.74209901,2519.4,2518.7,8.03309675]
[1751752850119,14.74209901,2519.4,2518.6,0.001]
[1751752850120,3.97030213,2518.7,2518.6,0.001]
[1751752850319,11.98130213,2518.7,2518.6,0.001]
[1751752851418,12.17970213,2518.7,2518.6,0.001]
[1751752857755,12.95260213,2518.7,2518.6,0.001]
[1751752863364,8.2064,2518.7,2518.6,0.001]
[1751752864055,12.17670213,2518.7,2518.6,0.001]
[1751752865958,8.2064,2518.7,2518.6,0.001]
[1751752866549,8.2054,2518.7,2518.6,0.001]
[1751752868624,0.1984,2518.7,2518.6,0.001]
[1751752868958,8.007,2518.7,2518.6,4.76838319]
[1751752869134,8.007,2518.7,2518.6,5.48345793]
[1751752869547,8.007,2518.7,2518.6,4.76838319]
[1751752874765,8.007,2518.7,2518.6,0.798]
[1751752880348,8.007,2518.7,2518.6,0.001]
[1751752880553,12.17570213,2518.7,2518.6,0.001]
[1751752908506,22.93230213,2518.7,2518.6,0.001]
[1751752908703,25.62254899,2518.7,2518.6,0.001]
[1751752912992,25.62254899,2518.7,2518.6,1e-08]
[1751752912993,26.17254899,2518.7,2518.6,1e-08]
[1751752913194,33.95537186,2518.7,2518.6,1e-08]
[1751752913396,15.30435977,2518.6,2518.3,1e-08]
[1751752913639,14.7554636,2517.9,2517.8,0.0428094]
[1751752913782,22.7584636,2517.9,2517.8,1e-08]
[1751752913985,24.7004636,2517.9,2517.8,1e-08]
[1751752914185,27.39071046,2517.9,2517.8,1e-08]
[1751752915489,4.52187909,2517.7,2517.6,1e-08]
[1751752915700,5.30593686,2517.6,2517.5,0.02]
[1751752915900,16.89162047,2517.6,2517.5,0.02]
[1751752917190,15.30609463,2517.5,2517.4,1e-08]
[1751752917418,23.31809463,2517.5,2517.4,1e-08]
[1751752919921,15.30609463,2517.5,2517.4,1e-08]
[1751752920121,4.75609463,2517.5,2517.4,1e-08]
[1751752920420,14.75688371,2517.0,2516.6,0.02]
[1751752920621,22.76988371,2517.0,2516.6,0.02]
[1751752922813,14.75688371,2517.0,2516.6,0.02]
[1751752923027,14.75688371,2517.0,2516.6,0.8316]
[1751752923028,13.97298371,2517.0,2516.6,0.8316]
[1751752923217,22.00098371,2517.0,2516.6,0.8316]
[1751752923923,22.00398371,2517.0,2516.6,0.8316]
[1751752925323,24.85134476,2517.0,2516.6,0.8316]
[1751752925526,16.82034476,2517.0,2516.6,0.8316]
[1751752925720,24.85134476,2517.0,2516.6,0.8316]
[1751752926533,16.82034476,2517.0,2516.6,0.8316]
[1751752926722,22.00398371,2517.0,2516.6,0.8316]
[1751752927317,10.0,2517.0,2516.6,0.8316]
[1751752927515,0.1984,2517.0,2516.6,0.8316]
[1751752927717,8.2284,2517.0,2516.6,4.80511251]
[1751752928345,8.2284,2517.0,2516.6,0.8316]
[1751752928640,12.20138371,2517.0,2516.6,0.8316]
[1751752929643,0.1984,2517.0,2516.6,4.80521094]
[1751752929943,8.2284,2517.0,2516.6,4.80521094]
[1751752930647,8.2284,2517.0,2516.7,3.99344418]
[1751752931645,8.2264,2517.0,2516.9,0.001]
[1751752934448,8.2244,2517.0,2516.9,0.001]
[1751752937644,0.1984,2517.0,2516.9,0.001]
[1751752937848,13.97275049,2517.2,2517.0,0.8116]
[1751752938059,0.1984,2517.3,2517.0,4.78452122]
[1751752938245,8.024,2517.2,2517.1,0.87586336]
[1751752938846,8.025,2517.2,2517.1,0.87586336]
[1751752939347,8.025,2517.2,2517.0,4.98292122]
[1751752942655,4.17268162,2517.5,2517.0,4.98292122]
[1751752942960,0.2004,2517.5,2517.2,4.78456782]
[1751752943127,0.002,2517.5,2517.4,0.8119]
[1751752943327,8.026,2517.5,2517.4,0.8119]
[1751752943528,0.002,2517.5,2517.4,0.8119]
[1751752943930,8.028,2517.5,2517.4,0.8119]
[1751752948660,8.028,2517.5,2517.4,4.78425242]
[1751752948962,0.002,2517.5,2517.4,5.19039339]
[1751752949163,8.025,2517.5,2517.4,5.38879339]
[1751752949463,8.024,2517.5,2517.4,12.96449345]
[1751752949651,0.002,2517.5,2517.4,12.96449345]
[1751752949853,8.025,2517.5,2517.4,12.96449345]
[1751752950157,0.002,2517.5,2517.4,12.96449345]
[1751752956866,0.002,2517.5,2517.4,14.91549345]
[1751752957276,0.0428094,2518.8,2518.5,3.97049523]
[1751752957466,0.0428094,2518.8,2518.6,8.38760006]
[1751752957662,3.97030213,2518.7,2518.3,0.8119]
[1751752957978,0.7606,2518.7,2518.3,0.8119]
[1751752958193,4.01305461,2518.8,2518.5,0.8119]
[1751752958194,0.0428094,2518.8,2518.5,0.8119]
[1751752958490,0.0428094,2518.8,2518.7,11.54600219]
[1751752958693,0.0428094,2518.8,2518.7,13.99470885]
[1751752959267,0.0428094,2518.8,2518.7,0.8119]
[1751752959653,0.0428094,2518.8,2518.5,3.97060934]
[1751752959849,0.0428094,2518.8,2518.4,0.8119]
[1751752960360,3.97030213,2518.7,2518.4,0.8119]
[1751752960974,3.97116147,2518.2,2518.0,0.8119]
[1751752961169,8.047,2518.4,2518.0,0.8119]
[1751752961346,3.97095398,2518.3,2518.0,0.8119]
[1751752962179,8.047,2518.4,2517.9,1.951]
[1751752962388,3.97140587,2518.0,2517.9,1.951]
[1751752962548,4.74012418,2518.0,2517.4,6.67543057]
[1751752962750,10.0,2518.3,2517.7,7.57570006]
[1751752962751,10.7686,2518.3,2517.7,7.57570006]
[1751752962962,10.7686,2518.3,2517.8,0.7522]
[1751752962963,12.02717861,2518.2,2517.8,0.7522]
[1751752963160,1.9938094,2518.8,2517.9,3.9714729]
[1751752963161,0.7686,2518.6,2517.9,3.9714729]
[1751752963364,8.057,2518.5,2518.3,8.32790006]
[1751752963793,8.057,2518.5,2518.0,2.7032]
[1751752963949,3.97091004,2518.4,2518.0,2.7032]
[1751752964265,3.97093905,2518.3,2518.0,2.7032]
[1751752964589,3.97121283,2518.2,2518.0,2.7032]
[1751752964752,3.97124816,2518.1,2518.0,1.951]
[1751752966578,3.97124816,2518.1,2517.5,1.969]
[1751752966579,3.97179011,2517.8,2517.5,1.969]
[1751752966778,8.063,2517.7,2517.5,1.969]
[1751752966980,8.064,2517.8,2517.5,1.969]
[1751752967159,8.064,2517.8,2517.6,0.1984]
[1751752967761,1.969,2518.5,2517.7,4.72401017]
[1751752967762,3.97104235,2518.3,2517.7,4.72401017]
[1751752967987,3.97104235,2518.3,2517.9,0.1984]
[1751752967988,12.03504235,2518.3,2517.9,0.1984]
[1751752968157,4.16923877,2518.4,2517.9,4.16989745]
[1751752968349,8.066,2518.3,2518.0,0.7522]
[1751752968549,12.03693354,2518.3,2518.0,0.7522]
[1751752968975,3.97110998,2518.2,2518.0,0.7522]
[1751752969193,3.97110998,2518.2,2517.9,0.1984]
[1751752969194,2.38922862,2518.2,2517.9,0.1984]